[Event "Titled Tuesday Blitz May 23 Early 2023"]
[White "Babazada, Khazar"]
[Black "Bortnyk, Olexandr"]
[WhiteFideId "13413554"]
[BlackFideId "14120828"]
[WhiteElo "2351"]
[BlackElo "2734"]
[Result "1/2-1/2"]
[Round "07"]
[TimeControl "180+2"]
[Date "2023.05.23"]
[WhiteClock "0:00:11"]
[BlackClock "0:00:10"]

1. e4 {[%clk 0:03:00]}  Nf6 {[%clk 0:03:00]} 2. Nc3 {[%clk 0:02:52]}  d6 {[%clk 0:02:56]} 3. d4 {[%clk 0:02:52]}  e5 {[%clk 0:02:56]} 4. Nf3 {[%clk 0:02:52]}  Nbd7 {[%clk 0:02:57]} 5. Bc4 {[%clk 0:02:50]}  Be7 {[%clk 0:02:57]} 6. O-O {[%clk 0:02:51]}  c6 {[%clk 0:02:57]} 7. a4 {[%clk 0:02:50]}  Qc7 {[%clk 0:02:56]} 8. a5 {[%clk 0:02:50]}  O-O {[%clk 0:02:56]} 9. h3 {[%clk 0:02:48]}  h6 {[%clk 0:02:56]} 10. Ba2 {[%clk 0:02:43]}  Re8 {[%clk 0:02:51]} 11. Re1 {[%clk 0:02:36]}  Nf8 {[%clk 0:02:47]} 12. Be3 {[%clk 0:02:29]}  Be6 {[%clk 0:02:40]} 13. Nd2 {[%clk 0:02:23]}  Bxa2 {[%clk 0:02:36]} 14. Rxa2 {[%clk 0:02:24]}  exd4 {[%clk 0:02:18]} 15. Bxd4 {[%clk 0:02:25]}  Ne6 {[%clk 0:02:18]} 16. Be3 {[%clk 0:02:22]}  d5 {[%clk 0:02:18]} 17. exd5 {[%clk 0:02:09]}  Nxd5 {[%clk 0:02:19]} 18. Nxd5 {[%clk 0:01:53]}  cxd5 {[%clk 0:02:20]} 19. c3 {[%clk 0:01:52]}  a6 {[%clk 0:02:00]} 20. Nf3 {[%clk 0:01:51]}  Qc6 {[%clk 0:01:47]} 21. Ra4 {[%clk 0:01:38]}  Bf6 {[%clk 0:01:46]} 22. Rg4 {[%clk 0:01:36]}  h5 {[%clk 0:01:41]} 23. Rb4 {[%clk 0:01:32]}  Rad8 {[%clk 0:01:38]} 24. Bb6 {[%clk 0:01:19]}  Rc8 {[%clk 0:01:33]} 25. Ne5 {[%clk 0:01:16]}  Bxe5 {[%clk 0:01:07]} 26. Rxe5 {[%clk 0:01:17]}  d4 {[%clk 0:01:07]} 27. Qxh5 {[%clk 0:01:11]}  Nf4 {[%clk 0:01:00]} 28. Rxe8+ {[%clk 0:00:52]}  Rxe8 {[%clk 0:01:01]} 29. Qg4 {[%clk 0:00:52]}  Re4 {[%clk 0:00:55]} 30. Qf3 {[%clk 0:00:39]}  Re1+ {[%clk 0:00:45]} 31. Kh2 {[%clk 0:00:39]}  Qxf3 {[%clk 0:00:46]} 32. gxf3 {[%clk 0:00:40]}  d3 {[%clk 0:00:46]} 33. Be3 {[%clk 0:00:38]}  Nd5 {[%clk 0:00:21]} 34. Rd4 {[%clk 0:00:26]}  Nxe3 {[%clk 0:00:21]} 35. fxe3 {[%clk 0:00:25]}  Rxe3 {[%clk 0:00:19]} 36. Kg3 {[%clk 0:00:24]}  Re2 {[%clk 0:00:18]} 37. b4 {[%clk 0:00:18]}  d2 {[%clk 0:00:19]} 38. h4 {[%clk 0:00:12]}  f6 {[%clk 0:00:18]} 39. f4 {[%clk 0:00:10]}  Re3+ {[%clk 0:00:17]} 40. Kg4 {[%clk 0:00:10]}  Rxc3 {[%clk 0:00:18]} 41. Rxd2 {[%clk 0:00:10]}  Rc4 {[%clk 0:00:19]} 42. Rb2 {[%clk 0:00:09]}  Kf7 {[%clk 0:00:18]} 43. h5 {[%clk 0:00:09]}  Rd4 {[%clk 0:00:16]} 44. Rb3 {[%clk 0:00:05]}  Rd5 {[%clk 0:00:12]} 45. Rb2 {[%clk 0:00:05]}  Rb5 {[%clk 0:00:12]} 46. Rb3 {[%clk 0:00:05]}  Kg8 {[%clk 0:00:12]} 47. Rb2 {[%clk 0:00:06]}  Kh7 {[%clk 0:00:12]} 48. Rb3 {[%clk 0:00:04]}  Kh6 {[%clk 0:00:13]} 49. f5 {[%clk 0:00:04]}  Rd5 {[%clk 0:00:11]} 50. Kf4 {[%clk 0:00:05]}  Rd4+ {[%clk 0:00:11]} 51. Ke3 {[%clk 0:00:05]}  Rg4 {[%clk 0:00:11]} 52. Kf3 {[%clk 0:00:03]}  Rc4 {[%clk 0:00:10]} 53. Rd3 {[%clk 0:00:02]}  Rxb4 {[%clk 0:00:10]} 54. Rd7 {[%clk 0:00:02]}  Rb5 {[%clk 0:00:10]} 55. Ke4 {[%clk 0:00:03]}  Re5+ {[%clk 0:00:06]} 56. Kf4 {[%clk 0:00:03]}  Rb5 {[%clk 0:00:06]} 57. Kg4 {[%clk 0:00:03]}  Rxa5 {[%clk 0:00:06]} 58. Rxb7 {[%clk 0:00:03]}  Ra4+ {[%clk 0:00:06]} 59. Kf3 {[%clk 0:00:03]}  a5 {[%clk 0:00:06]} 60. Ra7 {[%clk 0:00:03]}  Ra1 {[%clk 0:00:05]} 61. Kf4 {[%clk 0:00:03]}  a4 {[%clk 0:00:05]} 62. Ra8 {[%clk 0:00:04]}  Kh7 {[%clk 0:00:03]} 63. h6 {[%clk 0:00:04]}  a3 {[%clk 0:00:02]} 64. hxg7 {[%clk 0:00:04]}  Kxg7 {[%clk 0:00:03]} 65. Ra7+ {[%clk 0:00:04]}  Kh6 {[%clk 0:00:03]} 66. Kg3 {[%clk 0:00:03]}  a2 {[%clk 0:00:03]} 67. Kg2 {[%clk 0:00:03]}  Kg5 {[%clk 0:00:03]} 68. Ra5 {[%clk 0:00:03]}  Kg4 {[%clk 0:00:03]} 69. Kh2 {[%clk 0:00:02]}  Kf3 {[%clk 0:00:04]} 70. Ra3+ {[%clk 0:00:02]}  Ke4 {[%clk 0:00:04]} 71. Ra5 {[%clk 0:00:03]}  Kd4 {[%clk 0:00:04]} 72. Kg2 {[%clk 0:00:03]}  Kc3 {[%clk 0:00:04]} 73. Ra8 {[%clk 0:00:03]}  Kc4 {[%clk 0:00:04]} 74. Kh2 {[%clk 0:00:02]}  Kb3 {[%clk 0:00:04]} 75. Rb8+ {[%clk 0:00:02]}  Kc3 {[%clk 0:00:05]} 76. Rc8+ {[%clk 0:00:03]}  Kd4 {[%clk 0:00:05]} 77. Ra8 {[%clk 0:00:03]}  Ke4 {[%clk 0:00:05]} 78. Ra5 {[%clk 0:00:04]}  Kd3 {[%clk 0:00:06]} 79. Ra8 {[%clk 0:00:04]}  Kc4 {[%clk 0:00:07]} 80. Rc8+ {[%clk 0:00:04]}  Kb3 {[%clk 0:00:05]} 81. Rb8+ {[%clk 0:00:04]}  Kc3 {[%clk 0:00:06]} 82. Rc8+ {[%clk 0:00:05]}  Kd4 {[%clk 0:00:06]} 83. Ra8 {[%clk 0:00:05]}  Ke5 {[%clk 0:00:07]} 84. Ra5+ {[%clk 0:00:04]}  Kd6 {[%clk 0:00:07]} 85. Kg2 {[%clk 0:00:05]}  Kc6 {[%clk 0:00:07]} 86. Ra6+ {[%clk 0:00:06]}  Kb7 {[%clk 0:00:07]} 87. Ra3 {[%clk 0:00:05]}  Kb6 {[%clk 0:00:08]} 88. Kh2 {[%clk 0:00:06]}  Kc7 {[%clk 0:00:08]} 89. Kg2 {[%clk 0:00:06]}  Kd7 {[%clk 0:00:08]} 90. Kh2 {[%clk 0:00:06]}  Ke7 {[%clk 0:00:09]} 91. Kg2 {[%clk 0:00:07]}  Kf7 {[%clk 0:00:10]} 92. Kh2 {[%clk 0:00:07]}  Kg7 {[%clk 0:00:11]} 93. Kg2 {[%clk 0:00:08]}  Kh6 {[%clk 0:00:12]} 94. Kh2 {[%clk 0:00:08]}  Kh5 {[%clk 0:00:13]} 95. Ra4 {[%clk 0:00:08]}  Kg5 {[%clk 0:00:13]} 96. Ra5 {[%clk 0:00:08]}  Rf1 {[%clk 0:00:05]} 97. Rxa2 {[%clk 0:00:08]}  Rxf5 {[%clk 0:00:06]} 98. Kg3 {[%clk 0:00:08]}  Rb5 {[%clk 0:00:06]} 99. Ra4 {[%clk 0:00:08]}  Rb3+ {[%clk 0:00:06]} 100. Kg2 {[%clk 0:00:09]}  f5 {[%clk 0:00:06]} 101. Rc4 {[%clk 0:00:09]}  Ra3 {[%clk 0:00:06]} 102. Rb4 {[%clk 0:00:09]}  Rd3 {[%clk 0:00:06]} 103. Kf2 {[%clk 0:00:10]}  Kf6 {[%clk 0:00:07]} 104. Ra4 {[%clk 0:00:10]}  Ke5 {[%clk 0:00:07]} 105. Ra5+ {[%clk 0:00:10]}  Kf4 {[%clk 0:00:07]} 106. Ra4+ {[%clk 0:00:10]}  Kg5 {[%clk 0:00:07]} 107. Rb4 {[%clk 0:00:11]}  Ra3 {[%clk 0:00:07]} 108. Kg2 {[%clk 0:00:11]}  Ra2+ {[%clk 0:00:08]} 109. Kf3 {[%clk 0:00:11]}  Ra1 {[%clk 0:00:08]} 110. Kf2 {[%clk 0:00:11]}  Rh1 {[%clk 0:00:08]} 111. Kg2 {[%clk 0:00:12]}  Rh7 {[%clk 0:00:08]} 112. Ra4 {[%clk 0:00:11]}  Rb7 {[%clk 0:00:09]} 113. Rc4 {[%clk 0:00:11]}  Ra7 {[%clk 0:00:09]} 114. Rb4 {[%clk 0:00:11]}  Ra5 {[%clk 0:00:09]} 115. Rc4 {[%clk 0:00:11]}  Kf6 {[%clk 0:00:10]} 116. Rb4 {[%clk 0:00:11]}  Ke5 {[%clk 0:00:11]} 117. Kf2 {[%clk 0:00:11]}  Kd5 {[%clk 0:00:11]} 118. Rh4 {[%clk 0:00:11]}  Ra2+ {[%clk 0:00:11]} 119. Kf3 {[%clk 0:00:11]}  Ra3+ {[%clk 0:00:11]} 120. Kf2 {[%clk 0:00:12]}  Rd3 {[%clk 0:00:11]} 121. Rb4 {[%clk 0:00:11]}  Ke5 {[%clk 0:00:11]} 122. Ra4 {[%clk 0:00:11]}  Rd2+ {[%clk 0:00:11]} 123. Kf3 {[%clk 0:00:12]}  Rd5 {[%clk 0:00:11]} 124. Rb4 {[%clk 0:00:11]}  Rd3+ {[%clk 0:00:11]} 125. Kf2 {[%clk 0:00:12]}  Rc3 {[%clk 0:00:12]} 126. Ra4 {[%clk 0:00:12]}  f4 {[%clk 0:00:12]} 127. Rb4 {[%clk 0:00:11]}  Rc2+ {[%clk 0:00:11]} 128. Kf3 {[%clk 0:00:10]}  Rc1 {[%clk 0:00:11]} 129. Ra4 {[%clk 0:00:10]}  Rf1+ {[%clk 0:00:11]} 130. Ke2 {[%clk 0:00:10]}  Rh1 {[%clk 0:00:10]} 131. Kf3 {[%clk 0:00:11]}  Rh4 {[%clk 0:00:11]} 132. Re4+ {[%clk 0:00:10]}  Kf5 {[%clk 0:00:11]} 133. Ra4 {[%clk 0:00:11]}  Rh3+ {[%clk 0:00:11]} 134. Kf2 {[%clk 0:00:12]}  Rh2+ {[%clk 0:00:12]} 135. Kf3 {[%clk 0:00:12]}  Rh3+ {[%clk 0:00:12]} 136. Kf2 {[%clk 0:00:13]}  Kg4 {[%clk 0:00:13]} 137. Ra8 {[%clk 0:00:10]}  Rh2+ {[%clk 0:00:13]} 138. Kg1 {[%clk 0:00:11]}  Rb2 {[%clk 0:00:12]} 139. Ra3 {[%clk 0:00:11]}  Re2 {[%clk 0:00:11]} 140. Kf1 {[%clk 0:00:11]}  Rh2 {[%clk 0:00:10]} 141. Rb3 {[%clk 0:00:11]}  Rh1+ {[%clk 0:00:09]} 142. Kf2 {[%clk 0:00:11]}  Ra1 {[%clk 0:00:10]} 143. Rc3 {[%clk 0:00:11]}  Ra4 {[%clk 0:00:10]} 144. Rb3 {[%clk 0:00:11]}  Ra2+ {[%clk 0:00:05]} 145. Kf1 {[%clk 0:00:11]}  Rc2 {[%clk 0:00:06]} 146. Ra3 {[%clk 0:00:11]}  Rc1+ {[%clk 0:00:07]} 147. Kf2 {[%clk 0:00:12]}  Rc4 {[%clk 0:00:07]} 148. Rb3 {[%clk 0:00:11]}  Rc8 {[%clk 0:00:07]} 149. Ra3 {[%clk 0:00:11]}  Rh8 {[%clk 0:00:07]} 150. Rb3 {[%clk 0:00:11]}  Rh2+ {[%clk 0:00:07]} 151. Kf1 {[%clk 0:00:11]}  Kh4 {[%clk 0:00:07]} 152. Ra3 {[%clk 0:00:11]}  Rd2 {[%clk 0:00:07]} 153. Rb3 {[%clk 0:00:11]}  Rd5 {[%clk 0:00:07]} 154. Kf2 {[%clk 0:00:10]}  Kg4 {[%clk 0:00:06]} 155. Ra3 {[%clk 0:00:10]}  Rb5 {[%clk 0:00:06]} 156. Rc3 {[%clk 0:00:10]}  Rb4 {[%clk 0:00:05]} 157. Ra3 {[%clk 0:00:10]}  f3 {[%clk 0:00:06]} 158. Ra8 {[%clk 0:00:08]}  Rb2+ {[%clk 0:00:06]} 159. Kf1 {[%clk 0:00:08]}  Kg3 {[%clk 0:00:06]} 160. Rg8+ {[%clk 0:00:08]}  Kf4 {[%clk 0:00:07]} 161. Rf8+ {[%clk 0:00:09]}  Ke3 {[%clk 0:00:08]} 162. Re8+ {[%clk 0:00:10]}  Kf4 {[%clk 0:00:08]} 163. Rf8+ {[%clk 0:00:10]}  Ke3 {[%clk 0:00:09]} 164. Re8+ {[%clk 0:00:11]}  Kf4 {[%clk 0:00:10]} 165. Rf8+ {[%clk 0:00:11]} 1/2-1/2


[Site "https://www.chess.com"]

[Event "Titled Tuesday Blitz May 23 Early 2023"]
[White "Kramnik, Vladimir"]
[Black "Averjanov, Alexey"]
[WhiteFideId "4101588"]
[BlackFideId "14109867"]
[WhiteElo "2703"]
[BlackElo "2788"]
[Result "1-0"]
[Round "07"]
[TimeControl "180+2"]
[Date "2023.05.23"]
[WhiteClock "0:01:02"]
[BlackClock "0:00:02"]

1. e4 {[%clk 0:03:00]}  c6 {[%clk 0:02:59]} 2. d4 {[%clk 0:02:59]}  d5 {[%clk 0:03:00]} 3. Nd2 {[%clk 0:02:59]}  dxe4 {[%clk 0:03:00]} 4. Nxe4 {[%clk 0:03:00]}  Bf5 {[%clk 0:03:01]} 5. Ng3 {[%clk 0:02:59]}  Bg6 {[%clk 0:03:01]} 6. h4 {[%clk 0:03:00]}  h6 {[%clk 0:03:01]} 7. Be3 {[%clk 0:02:58]}  e6 {[%clk 0:03:00]} 8. h5 {[%clk 0:02:54]}  Bh7 {[%clk 0:03:00]} 9. Bd3 {[%clk 0:02:55]}  Bxd3 {[%clk 0:03:00]} 10. Qxd3 {[%clk 0:02:55]}  Nf6 {[%clk 0:03:01]} 11. O-O-O {[%clk 0:02:55]}  Be7 {[%clk 0:02:58]} 12. Kb1 {[%clk 0:02:53]}  Nbd7 {[%clk 0:02:53]} 13. N1e2 {[%clk 0:02:49]}  O-O {[%clk 0:02:49]} 14. Nf4 {[%clk 0:02:45]}  Nd5 {[%clk 0:02:38]} 15. Ne4 {[%clk 0:02:36]}  Nxf4 {[%clk 0:02:31]} 16. Bxf4 {[%clk 0:02:36]}  Nf6 {[%clk 0:02:31]} 17. Nxf6+ {[%clk 0:02:22]}  Bxf6 {[%clk 0:02:32]} 18. g4 {[%clk 0:02:22]}  b5 {[%clk 0:02:09]} 19. Rhg1 {[%clk 0:02:04]}  Qd5 {[%clk 0:02:09]} 20. Qe3 {[%clk 0:02:05]}  Rfd8 {[%clk 0:01:50]} 21. g5 {[%clk 0:01:54]}  Bxd4 {[%clk 0:01:35]} 22. Qg3 {[%clk 0:01:50]}  hxg5 {[%clk 0:01:18]} 23. Bxg5 {[%clk 0:01:49]}  Rd7 {[%clk 0:00:45]} 24. Be3 {[%clk 0:01:44]}  Bf6 {[%clk 0:00:18]} 25. Rxd5 {[%clk 0:01:41]}  Rxd5 {[%clk 0:00:19]} 26. h6 {[%clk 0:01:36]}  g6 {[%clk 0:00:17]} 27. Qc7 {[%clk 0:01:26]}  Rad8 {[%clk 0:00:15]} 28. c3 {[%clk 0:01:12]}  c5 {[%clk 0:00:12]} 29. h7+ {[%clk 0:01:10]}  Kg7 {[%clk 0:00:12]} 30. Bh6+ {[%clk 0:01:02]}  Kxh6 {[%clk 0:00:10]} 31. Qxf7 {[%clk 0:01:02]}  Bh4 {[%clk 0:00:02]} 32. Qxg6# {[%clk 0:01:02]} 1-0


[Site "https://www.chess.com"]

[Event "Titled Tuesday Blitz May 23 Early 2023"]
[White "Sviridov, Valery"]
[Black "Talibov, Shiroghlan"]
[WhiteFideId "4120680"]
[BlackFideId "13429078"]
[WhiteElo "2457"]
[BlackElo "2188"]
[Result "1-0"]
[Round "07"]
[TimeControl "180+2"]
[Date "2023.05.23"]
[WhiteClock "0:00:06"]
[BlackClock "0:00:01"]

1. d4 {[%clk 0:03:00]}  Nf6 {[%clk 0:02:54]} 2. Nf3 {[%clk 0:03:00]}  e6 {[%clk 0:02:53]} 3. e3 {[%clk 0:02:59]}  d5 {[%clk 0:02:53]} 4. Nbd2 {[%clk 0:02:59]}  a6 {[%clk 0:02:51]} 5. Bd3 {[%clk 0:02:59]}  b6 {[%clk 0:02:50]} 6. e4 {[%clk 0:02:59]}  dxe4 {[%clk 0:02:47]} 7. Nxe4 {[%clk 0:03:00]}  Bb7 {[%clk 0:02:48]} 8. Qe2 {[%clk 0:03:00]}  Nbd7 {[%clk 0:02:47]} 9. O-O {[%clk 0:03:00]}  Be7 {[%clk 0:02:46]} 10. Rd1 {[%clk 0:02:52]}  O-O {[%clk 0:02:44]} 11. Bf4 {[%clk 0:02:51]}  Nxe4 {[%clk 0:02:34]} 12. Bxe4 {[%clk 0:02:52]}  Bxe4 {[%clk 0:02:34]} 13. Qxe4 {[%clk 0:02:53]}  Nf6 {[%clk 0:02:35]} 14. Qc6 {[%clk 0:02:54]}  Bd6 {[%clk 0:02:30]} 15. Ne5 {[%clk 0:02:54]}  Qe8 {[%clk 0:02:24]} 16. Qf3 {[%clk 0:02:51]}  Nd7 {[%clk 0:02:12]} 17. Nc6 {[%clk 0:02:35]}  Nf6 {[%clk 0:02:04]} 18. Bd2 {[%clk 0:02:18]}  Nd5 {[%clk 0:01:57]} 19. Ne5 {[%clk 0:02:18]}  Bxe5 {[%clk 0:01:57]} 20. dxe5 {[%clk 0:02:18]}  b5 {[%clk 0:01:56]} 21. b3 {[%clk 0:02:07]}  b4 {[%clk 0:01:55]} 22. c4 {[%clk 0:02:01]}  bxc3 {[%clk 0:01:54]} 23. Bxc3 {[%clk 0:02:01]}  Qb5 {[%clk 0:01:52]} 24. Rac1 {[%clk 0:02:00]}  Rfd8 {[%clk 0:01:50]} 25. h4 {[%clk 0:01:59]}  h6 {[%clk 0:01:38]} 26. Bd4 {[%clk 0:01:57]}  Rd7 {[%clk 0:01:34]} 27. Rc4 {[%clk 0:01:48]}  Rad8 {[%clk 0:01:32]} 28. Rdc1 {[%clk 0:01:49]}  Ne7 {[%clk 0:01:18]} 29. Rxc7 {[%clk 0:01:40]}  Nf5 {[%clk 0:01:13]} 30. Rxd7 {[%clk 0:01:39]}  Rxd7 {[%clk 0:01:13]} 31. Bc3 {[%clk 0:01:29]}  Nxh4 {[%clk 0:01:09]} 32. Qa8+ {[%clk 0:01:29]}  Kh7 {[%clk 0:01:09]} 33. Qe4+ {[%clk 0:01:29]}  Ng6 {[%clk 0:01:05]} 34. Re1 {[%clk 0:01:18]}  Kg8 {[%clk 0:00:55]} 35. Qa8+ {[%clk 0:01:17]}  Kh7 {[%clk 0:00:54]} 36. Qe4 {[%clk 0:01:18]}  Kg8 {[%clk 0:00:54]} 37. g3 {[%clk 0:01:19]}  Ne7 {[%clk 0:00:54]} 38. Bb4 {[%clk 0:01:13]}  Nf5 {[%clk 0:00:51]} 39. Bc3 {[%clk 0:01:05]}  Qc5 {[%clk 0:00:44]} 40. Bb4 {[%clk 0:01:00]}  Qb6 {[%clk 0:00:40]} 41. Rc1 {[%clk 0:00:35]}  Rd4 {[%clk 0:00:33]} 42. Rc8+ {[%clk 0:00:34]}  Kh7 {[%clk 0:00:32]} 43. Bc5 {[%clk 0:00:34]}  Rd1+ {[%clk 0:00:24]} 44. Kh2 {[%clk 0:00:29]}  Qb5 {[%clk 0:00:23]} 45. g4 {[%clk 0:00:22]}  Qd7 {[%clk 0:00:10]} 46. Ra8 {[%clk 0:00:13]}  Rd5 {[%clk 0:00:09]} 47. Ra7 {[%clk 0:00:08]}  Qc6 {[%clk 0:00:04]} 48. Bd4 {[%clk 0:00:07]}  Qc1 {[%clk 0:00:02]} 49. gxf5 {[%clk 0:00:07]}  Qg5 {[%clk 0:00:02]} 50. fxe6+ {[%clk 0:00:07]}  Kh8 {[%clk 0:00:01]} 51. Ra8+ {[%clk 0:00:06]} 1-0


[Site "https://www.chess.com"]

[Event "Titled Tuesday Blitz May 23 Early 2023"]
[White "Zherebukh, Yaroslav"]
[Black "Svane, Rasmus"]
[WhiteFideId "14116804"]
[BlackFideId "4657101"]
[WhiteElo "2531"]
[BlackElo "2601"]
[Result "0-1"]
[Round "07"]
[TimeControl "180+2"]
[Date "2023.05.23"]
[WhiteClock "0:00:00"]
[BlackClock "0:01:05"]

1. e4 {[%clk 0:02:59]}  c6 {[%clk 0:02:59]} 2. Nc3 {[%clk 0:02:55]}  d5 {[%clk 0:03:00]} 3. Nf3 {[%clk 0:02:56]}  dxe4 {[%clk 0:03:00]} 4. Nxe4 {[%clk 0:02:57]}  Nf6 {[%clk 0:03:00]} 5. Qe2 {[%clk 0:02:57]}  Nxe4 {[%clk 0:03:01]} 6. Qxe4 {[%clk 0:02:58]}  Qa5 {[%clk 0:03:01]} 7. Bc4 {[%clk 0:02:45]}  Bf5 {[%clk 0:03:01]} 8. Qf4 {[%clk 0:02:43]}  e6 {[%clk 0:03:01]} 9. Bb3 {[%clk 0:02:42]}  Qd8 {[%clk 0:02:58]} 10. d4 {[%clk 0:02:40]}  Bd6 {[%clk 0:02:58]} 11. Qe3 {[%clk 0:02:36]}  O-O {[%clk 0:02:57]} 12. Bd2 {[%clk 0:02:34]}  Nd7 {[%clk 0:02:57]} 13. O-O-O {[%clk 0:02:01]}  a5 {[%clk 0:02:57]} 14. a3 {[%clk 0:02:01]}  b5 {[%clk 0:02:55]} 15. Ne5 {[%clk 0:01:58]}  Nxe5 {[%clk 0:02:12]} 16. dxe5 {[%clk 0:01:58]}  Be7 {[%clk 0:02:13]} 17. f3 {[%clk 0:01:21]}  c5 {[%clk 0:02:03]} 18. g4 {[%clk 0:01:17]}  Bg6 {[%clk 0:02:03]} 19. h4 {[%clk 0:01:10]}  h6 {[%clk 0:02:03]} 20. h5 {[%clk 0:01:00]}  Bh7 {[%clk 0:02:03]} 21. f4 {[%clk 0:00:44]}  c4 {[%clk 0:02:03]} 22. Ba2 {[%clk 0:00:44]}  Qc7 {[%clk 0:01:59]} 23. g5 {[%clk 0:00:40]}  Bf5 {[%clk 0:01:56]} 24. Qg3 {[%clk 0:00:26]}  Kh8 {[%clk 0:01:56]} 25. Rdg1 {[%clk 0:00:26]}  Rg8 {[%clk 0:01:55]} 26. c3 {[%clk 0:00:15]}  b4 {[%clk 0:01:50]} 27. a4 {[%clk 0:00:05]}  Rad8 {[%clk 0:01:39]} 28. Rh2 {[%clk 0:00:04]}  Rd3 {[%clk 0:01:38]} 29. Qe1 {[%clk 0:00:04]}  Qd7 {[%clk 0:01:35]} 30. Bb1 {[%clk 0:00:04]}  Qxa4 {[%clk 0:01:34]} 31. Rhg2 {[%clk 0:00:02]}  bxc3 {[%clk 0:01:31]} 32. Bxc3 {[%clk 0:00:02]}  hxg5 {[%clk 0:01:18]} 33. fxg5 {[%clk 0:00:01]}  Bc5 {[%clk 0:01:18]} 34. g6 {[%clk 0:00:01]}  Be3+ {[%clk 0:01:14]} 35. Qxe3 {[%clk 0:00:01]}  Rxe3 {[%clk 0:01:14]} 36. gxf7 {[%clk 0:00:02]}  Rxc3+ {[%clk 0:01:07]} 37. bxc3 {[%clk 0:00:02]}  Qa3+ {[%clk 0:01:08]} 38. Kd2 {[%clk 0:00:00]}  Rd8+ {[%clk 0:01:05]} 0-1


[Site "https://www.chess.com"]

[Event "Titled Tuesday Blitz May 23 Early 2023"]
[White "Cordova, Emilio"]
[Black "Mahdavi, Reza"]
[WhiteFideId "3801497"]
[BlackFideId "12595926"]
[WhiteElo "2607"]
[BlackElo "2352"]
[Result "1/2-1/2"]
[Round "07"]
[TimeControl "180+2"]
[Date "2023.05.23"]
[WhiteClock "0:01:27"]
[BlackClock "0:01:27"]

1. d4 {[%clk 0:03:00]}  Nf6 {[%clk 0:02:58]} 2. Nf3 {[%clk 0:03:01]}  g6 {[%clk 0:02:58]} 3. c4 {[%clk 0:03:01]}  Bg7 {[%clk 0:02:59]} 4. Nc3 {[%clk 0:03:02]}  O-O {[%clk 0:03:00]} 5. g3 {[%clk 0:03:02]}  d6 {[%clk 0:03:01]} 6. Bg2 {[%clk 0:03:03]}  Nbd7 {[%clk 0:03:01]} 7. O-O {[%clk 0:03:04]}  e5 {[%clk 0:03:02]} 8. e4 {[%clk 0:03:04]}  exd4 {[%clk 0:03:02]} 9. Nxd4 {[%clk 0:03:05]}  Nc5 {[%clk 0:03:03]} 10. f3 {[%clk 0:03:01]}  c6 {[%clk 0:03:01]} 11. Be3 {[%clk 0:03:01]}  Re8 {[%clk 0:03:01]} 12. Bf2 {[%clk 0:03:00]}  Nfd7 {[%clk 0:02:58]} 13. b3 {[%clk 0:02:57]}  Ne5 {[%clk 0:02:58]} 14. Nde2 {[%clk 0:02:50]}  a5 {[%clk 0:02:49]} 15. Qc2 {[%clk 0:02:47]}  f5 {[%clk 0:02:38]} 16. Nf4 {[%clk 0:02:39]}  fxe4 {[%clk 0:02:33]} 17. Nxe4 {[%clk 0:02:20]}  Nxe4 {[%clk 0:02:31]} 18. fxe4 {[%clk 0:02:20]}  Ng4 {[%clk 0:02:30]} 19. Rad1 {[%clk 0:02:20]}  Nxf2 {[%clk 0:02:28]} 20. Qxf2 {[%clk 0:02:21]}  Bg4 {[%clk 0:02:24]} 21. Bf3 {[%clk 0:02:20]}  Bxf3 {[%clk 0:02:19]} 22. Qxf3 {[%clk 0:02:21]}  Qe7 {[%clk 0:02:20]} 23. Kg2 {[%clk 0:02:14]}  a4 {[%clk 0:02:20]} 24. Rf2 {[%clk 0:02:10]}  axb3 {[%clk 0:02:20]} 25. axb3 {[%clk 0:02:10]}  Ra3 {[%clk 0:02:12]} 26. Re2 {[%clk 0:02:09]}  Rf8 {[%clk 0:02:08]} 27. Qg4 {[%clk 0:02:02]}  Rxb3 {[%clk 0:01:53]} 28. Qe6+ {[%clk 0:02:01]}  Qxe6 {[%clk 0:01:47]} 29. Nxe6 {[%clk 0:02:02]}  Re8 {[%clk 0:01:39]} 30. Nxg7 {[%clk 0:01:52]}  Kxg7 {[%clk 0:01:39]} 31. Rxd6 {[%clk 0:01:53]}  Re7 {[%clk 0:01:37]} 32. e5 {[%clk 0:01:53]}  Rc3 {[%clk 0:01:36]} 33. Re4 {[%clk 0:01:51]}  b5 {[%clk 0:01:32]} 34. Rxc6 {[%clk 0:01:27]}  Rxc4 {[%clk 0:01:27]} 1/2-1/2


[Site "https://www.chess.com"]

[Event "Titled Tuesday Blitz May 23 Early 2023"]
[White "Matlakov, Maxim"]
[Black "Kilic, Eray"]
[WhiteFideId "4168003"]
[BlackFideId "44517173"]
[WhiteElo "2666"]
[BlackElo "2328"]
[Result "1-0"]
[Round "07"]
[TimeControl "180+2"]
[Date "2023.05.23"]
[WhiteClock "0:00:25"]
[BlackClock "0:00:06"]

1. Nf3 {[%clk 0:03:00]}  Nf6 {[%clk 0:02:59]} 2. d4 {[%clk 0:03:00]}  g6 {[%clk 0:02:59]} 3. e3 {[%clk 0:02:59]}  Bg7 {[%clk 0:02:59]} 4. Be2 {[%clk 0:03:00]}  O-O {[%clk 0:02:59]} 5. O-O {[%clk 0:03:00]}  d5 {[%clk 0:03:00]} 6. b4 {[%clk 0:02:59]}  a5 {[%clk 0:02:54]} 7. b5 {[%clk 0:02:59]}  c5 {[%clk 0:02:54]} 8. bxc6 {[%clk 0:02:56]}  Nxc6 {[%clk 0:02:51]} 9. a4 {[%clk 0:02:56]}  Ne4 {[%clk 0:02:49]} 10. Nfd2 {[%clk 0:02:54]}  Nd6 {[%clk 0:02:42]} 11. Na3 {[%clk 0:02:52]}  e5 {[%clk 0:02:40]} 12. c3 {[%clk 0:02:52]}  Re8 {[%clk 0:02:37]} 13. Nb5 {[%clk 0:02:50]}  Bf5 {[%clk 0:02:34]} 14. Ba3 {[%clk 0:02:48]}  Bf8 {[%clk 0:02:23]} 15. Qb3 {[%clk 0:02:42]}  exd4 {[%clk 0:02:19]} 16. cxd4 {[%clk 0:02:35]}  Nxb5 {[%clk 0:02:13]} 17. Bxb5 {[%clk 0:02:31]}  Bxa3 {[%clk 0:02:07]} 18. Qxa3 {[%clk 0:02:31]}  Rc8 {[%clk 0:02:08]} 19. Rac1 {[%clk 0:02:30]}  Qg5 {[%clk 0:01:59]} 20. Nf3 {[%clk 0:02:29]}  Qf6 {[%clk 0:01:59]} 21. Rc5 {[%clk 0:02:10]}  Red8 {[%clk 0:01:43]} 22. Bxc6 {[%clk 0:02:05]}  Rxc6 {[%clk 0:01:37]} 23. Rxa5 {[%clk 0:02:05]}  Rdc8 {[%clk 0:01:32]} 24. Rc5 {[%clk 0:02:02]}  Qd6 {[%clk 0:01:09]} 25. Qb2 {[%clk 0:01:51]}  Rxc5 {[%clk 0:01:06]} 26. dxc5 {[%clk 0:01:52]}  Qe7 {[%clk 0:01:06]} 27. Nd4 {[%clk 0:01:43]}  Bd3 {[%clk 0:01:03]} 28. Rd1 {[%clk 0:01:38]}  Bc4 {[%clk 0:01:01]} 29. Rb1 {[%clk 0:01:33]}  Rxc5 {[%clk 0:00:58]} 30. Qxb7 {[%clk 0:01:21]}  Qxb7 {[%clk 0:00:55]} 31. Rxb7 {[%clk 0:01:22]}  Ba6 {[%clk 0:00:56]} 32. Rb1 {[%clk 0:01:19]}  Ra5 {[%clk 0:00:47]} 33. Rb4 {[%clk 0:01:16]}  Kg7 {[%clk 0:00:47]} 34. h4 {[%clk 0:01:16]}  Bc8 {[%clk 0:00:46]} 35. Nb3 {[%clk 0:01:10]}  Ra7 {[%clk 0:00:43]} 36. a5 {[%clk 0:01:10]}  Ba6 {[%clk 0:00:41]} 37. Nc5 {[%clk 0:01:08]}  Bc4 {[%clk 0:00:41]} 38. a6 {[%clk 0:01:06]}  Rc7 {[%clk 0:00:34]} 39. Ra4 {[%clk 0:01:04]}  Bb5 {[%clk 0:00:28]} 40. a7 {[%clk 0:01:04]}  Bc6 {[%clk 0:00:28]} 41. Ra5 {[%clk 0:00:57]}  Ba8 {[%clk 0:00:25]} 42. Kh2 {[%clk 0:00:52]}  Re7 {[%clk 0:00:20]} 43. Kg3 {[%clk 0:00:52]}  h6 {[%clk 0:00:20]} 44. Ra6 {[%clk 0:00:43]}  h5 {[%clk 0:00:19]} 45. Na4 {[%clk 0:00:43]}  d4 {[%clk 0:00:19]} 46. exd4 {[%clk 0:00:41]}  Re4 {[%clk 0:00:17]} 47. d5 {[%clk 0:00:31]}  Rg4+ {[%clk 0:00:16]} 48. Kh3 {[%clk 0:00:29]}  Rd4 {[%clk 0:00:15]} 49. Nb6 {[%clk 0:00:27]}  Rd3+ {[%clk 0:00:10]} 50. f3 {[%clk 0:00:27]}  Ra3 {[%clk 0:00:06]} 51. Rxa3 {[%clk 0:00:25]} 1-0


[Site "https://www.chess.com"]